Cogmind - Beta 14 @@@ ROGUE MODE // 2024.09.05 @ 13:21:26 Player: THN-L0C Result: Destroyed by DAS Turret with DAS Cannon Performance ------------- Evolutions (1) 500 Regions Visited (5) 1000 Robots Destroyed (70) 350 Value Destroyed (1734) 1734 Prototype IDs (33) 660 Alien Tech Used (0) 0 Bonus (333) 333 TOTAL SCORE: 4577 Bonus ------- High Alert Combat Kills 33 Aligned with FarCom 300 Cogmind --------- Core Integrity 0/400 Matter 284/300 Energy 95/100 System Corruption 0% Temperature Cool (0) Movement Hovering (450) Ox5 Location -9/Exiles Parts ------- > --- POWER (1) -------- (None) > --- PROPULSION (2) --- Light Treads Combat Airjet > --- UTILITY (4) ------ Large Storage Unit High-capacity Storage Unit Improved Terrain Scanner > --- WEAPON (2) ------- Autogun > --- INVENTORY (20) --- Huge Storage Unit Experimental Sensor Array System Shield Advanced Beam Cannon Autogun Autogun Rocket Launcher Rocket Launcher Maul Peak State ------------ > --- POWER ------------ Cooled Ion Engine > --- PROPULSION ------- Light Treads Improved Treads > --- UTILITY ---------- Large Storage Unit Experimental Sensor Array Improved Terrain Scanner Light Armor Plating > --- WEAPON ----------- Autogun Autogun > --- INVENTORY -------- Light Treads Light Treads Combat Airjet Huge Storage Unit Large Matter Pod Light Armor Plating Hardened Light Armor Plating System Shield Advanced Beam Cannon Autogun Autogun Bore Cannon Rocket Launcher Rocket Launcher Maul [Rating: 27] Favorites ----------- Power Cooled Ion Engine Engine Cooled Ion Engine Power Core Light Nuclear Core Propulsion Light Treads Treads Light Treads Wheel Armored Wheel Hover Unit Combat Airjet Utility Light Armor Plating Device Improved Terrain Scanner Storage Large Storage Unit Hackware Hacking Suite Protection Light Armor Plating Weapon Autogun Energy Gun Improved EM Shotgun Energy Cannon Advanced Beam Cannon Ballistic Gun Autogun Ballistic Cannon Bore Cannon Launcher Rocket Launcher Build | -11 -10 -10 -9 -9 -9 ------- Run | Yrd Mat Min Mat Min Exi Slots Evolved 2 | . . . 2 . . Power . | . . . . . . Propulsion . | . . . . . . Utility 2 | . . . 2 . . Weapon . | . . . . . . Parts Attached 80 | 7 6 6 44 4 13 Power 8 | 1 2 1 4 . . Engine 7 | 1 2 . 4 . . Core 1 | . . 1 . . . Reactor . | . . . . . . Propulsion 22 | 2 1 2 10 1 6 Treads 20 | 2 1 2 9 1 5 Leg . | . . . . . . Wheel 1 | . . . 1 . . Hover 1 | . . . . . 1 Flight . | . . . . . . Utility 22 | 2 3 . 11 3 3 Device 6 | 1 1 . 2 1 1 Storage 5 | 1 . . 2 1 1 Processor . | . . . . . . Hackware 2 | . . . 2 . . Protection 9 | . 2 . 5 1 1 Artifact . | . . . . . . Weapon 28 | 2 . 3 19 . 4 Energy Gun 2 | . . . 2 . . Energy Cannon 3 | . . . 3 . . Ballistic Gun 17 | 2 . 1 12 . 2 Ballistic Cannon 2 | . . 1 . . 1 Launcher 4 | . . 1 2 . 1 Special Weapon . | . . . . . . Impact Weapon . | . . . . . . Slashing Weapon . | . . . . . . Piercing Weapon . | . . . . . . Special Melee Weapon . | . . . . . . Unidentified Prototypes 6 | . . . 5 1 . Parts Lost 13 | . 1 2 . . 10 Power 1 | . . . . . 1 Propulsion 4 | . . . . . 4 Utility 4 | . 1 . . . 3 Weapon 4 | . . 2 . . 2 Highest Loss Streak 5 | . 1 1 . . 5 To Critical Strikes 5 | . . . . . 5 Average Slot Usage (%) 98 | . 99 98 99 100 94 Engine 10 | . 14 11 9 11 8 Treads 22 | . 28 28 20 22 20 Device 9 | . 9 . 8 16 7 Storage 12 | . 14 14 11 11 14 Hackware 5 | . . . 13 . . Protection 12 | . 4 14 11 16 19 Energy Cannon 1 | . . . 3 . . Ballistic Gun 20 | . 28 11 18 22 18 Ballistic Cannon 1 | . . 10 . . 3 Peak Build Rating 27 | 7 8 14 22 27 22 Average Rating 18 | 5 7 11 20 23 20 On Entrance 11 | . 7 8 14 20 21 Naked Turns . | . . . . . . Heaviest Build 84 | 15 15 24 43 63 84 Greatest Support 43 | 40 40 40 43 43 43 Greatest Overweight (x) 8 | . . . 8 1 6 Average Overweight (x) . | . . . . . 1 Largest Inventory Capacity 20 | 8 8 8 15 20 20 Average Capacity 13 | 7 8 8 12 18 20 Most Carried 20 | 2 8 8 15 17 20 Average Carried 12 | . 6 7 11 16 17 Final Capacity 20 | 8 8 8 15 20 20 Final Carried 17 | 2 8 8 15 17 9 Class Distribution -------------------- 57% | Mutant 33% | Scavenger-Mutant 9% | Hacker-Mutant Dominant Class ---------------- Mutant | -10/Materials Mutant | -10/Mines Scavenger-Mutant | -9/Materials Mutant | -9/Mines Mutant | -9/Exiles Resources | -11 -10 -10 -9 -9 -9 ----------- Run | Yrd Mat Min Mat Min Exi Matter Collected 2816 | 282 447 127 1224 185 551 Remotely . | . . . . . . Salvage Created 2499 | 84 545 110 1531 183 46 Parts 171 | 8 40 3 108 12 . Haulers Intercepted 6 | . 2 . 4 . . Recyclers Shooed 5 | . 2 . 3 . . Parts Field Recycled . | . . . . . . Retrieved Matter . | . . . . . . Parts Self-Destructed . | . . . . . . Prevented . | . . . . . . Kills | -11 -10 -10 -9 -9 -9 ------- Run | Yrd Mat Min Mat Min Exi Combat Hostiles Destroyed 55 | . 8 12 28 3 4 Guns 33 | . 8 1 21 3 . Cannons 8 | . . 2 5 . 1 AOE 14 | . . 9 2 . 3 Classes Destroyed 14 | 2 5 2 5 . . Worker 4 | . 1 . 1 2 . Builder 3 | . 2 . 1 . . Tunneler 2 | 1 . . 1 . . Hauler 6 | . 2 . 4 . . Recycler 3 | 1 . . 2 . . Operator 1 | . . . 1 . . Watcher 8 | . 3 . 5 . . Swarmer 6 | . . . 6 . . Grunt 22 | . 8 2 10 2 . Brawler 3 | . . . 2 1 . Duelist 1 | . . . 1 . . Sentry 9 | . . . 9 . . Demolisher 1 | . . 1 . . . Assembled 12 | . . 9 . . 3 Best Kill Streak 11 | 2 2 9 11 3 3 Combat Bots Only 9 | . 2 9 5 3 3 Max Kills in Single Turn 4 | 1 1 4 2 1 2 Gunslinging 1 | . . . 1 . . Exploded 4 | . . 4 1 . 2 Melee . | . . . . . . Uniques/NPCs Destroyed 1 | . . . . . 1 8R-AWN (-9/Exiles) Combat | -11 -10 -10 -9 -9 -9 -------- Run | Yrd Mat Min Mat Min Exi Hostile Shots Fired 277 | . 36 26 98 28 89 Missed 62 | . 5 5 25 6 21 Damage Taken 3439 | . 409 584 922 298 1226 Core 656 | . 64 156 97 23 316 Absorbed by Shields . | . . . . . . Redirected to Shielding 38 | . . 34 4 . . Regen/Repaired (Parts) 211 | . . . 211 . . Core Remaining (%) 56 | 100 . 12 . . . Volleys Fired 222 | 2 43 14 101 16 46 Largest 2 | 2 2 2 2 2 2 Hottest 136 | 40 40 77 136 46 80 Shots Fired 424 | 4 86 19 197 32 86 Gun 324 | 4 86 5 156 32 41 Cannon 90 | . . 10 37 . 43 Launcher 10 | . . 4 4 . 2 Special . | . . . . . . Kinetic 379 | 4 86 15 158 32 84 Thermal 35 | . . . 35 . . Explosive 10 | . . 4 4 . 2 Electromagnetic . | . . . . . . Robot Hit Streak 17 | 4 10 4 17 13 5 Robot Miss Streak 5 | . 2 2 3 2 5 Penetration Max 1 | . . 1 . . . Secondary Targets 3 | . . . 2 1 . Max Gunslinging Chain 1 | . . . 1 1 . Shots Hit Robots 276 | 4 57 10 137 22 46 Core Hits 139 | 3 30 21 61 8 16 Critical Kills 3 | . 1 2 . . . Critical Parts Destroyed 7 | . . 5 1 . 1 Critical Strikes 17 | . 1 7 1 . 8 Destroy 17 | . 1 7 1 . 8 Melee Attacks . | . . . . . . Impact . | . . . . . . Slashing . | . . . . . . Piercing . | . . . . . . Sneak Attacks . | . . . . . . Combat Hostiles . | . . . . . . Follow-up Attacks . | . . . . . . Damage Inflicted 5448 | 49 759 699 2628 389 924 Guns 3117 | 49 757 26 1503 370 412 Cannons 1220 | . . 175 654 . 391 Explosions 1090 | . . 498 471 . 121 Melee . | . . . . . . Ramming 21 | . 2 . . 19 . Kinetic 3723 | 49 757 201 1543 370 803 Thermal 614 | . . . 614 . . Explosive 1090 | . . 498 471 . 121 Electromagnetic . | . . . . . . Impact . | . . . . . . Slashing . | . . . . . . Piercing . | . . . . . . Highest Corruption . | . . . . . . Average Corruption . | . . . . . . Corruption Purged . | . . . . . . Corruption Blocked . | . . . . . . Overload Shots . | . . . . . . Overflow Damage 32 | . . 18 14 . . Projectiles 14 | . . . 14 . . Explosions 18 | . . 18 . . . Melee . | . . . . . . Knockbacks 7 | . . 1 . . 6 Impact . | . . . . . . Kinetic 7 | . . 1 . . 6 Secondary . | . . . . . . Self-Inflicted Damage 117 | . . 117 . . . Shots 3 | . . 3 . . . Rammed 4 | . 2 . . 2 . Targets Rammed 4 | . 2 . . 2 . Kicked . | . . . . . . Crushed . | . . . . . . Highest Temperature 232 | . 20 159 226 115 232 Average Temperature 73 | . 4 65 51 56 142 Received Heat Transfer 781 | . 249 94 336 102 . Siege Activations . | . . . . . . Robots Corrupted . | . . . . . . Combat Hostiles . | . . . . . . Parts Fried . | . . . . . . Impact Corruptions . | . . . . . . Robots Melted . | . . . . . . Combat Hostiles . | . . . . . . Parts Melted 2 | . . . 2 . . Heat Transferred 999 | . . . 999 . . Parts Sabotaged . | . . . . . . Parts Stolen . | . . . . . . Parts Stripped . | . . . . . . Power Chain Reactions . | . . . . . . Alert | -11 -10 -10 -9 -9 -9 ------- Run | Yrd Mat Min Mat Min Exi Peak Influence 495 | 10 190 110 495 70 . Initial 57 | . 6 8 . 57 . Average 92 | 3 41 47 156 23 . Maximum Alert Level 2 | . . . 2 . . Low Security (%) 91 | 100 100 100 83 100 . Level 1 4 | . . . 10 . . Level 2 3 | . . . 6 . . Level 3 . | . . . . . . Level 4 . | . . . . . . Level 5 . | . . . . . . High Security . | . . . . . . Max Security . | . . . . . . Squads Dispatched 3 | . 2 . 1 . . Investigation 1 | . . . 1 . . Extermination . | . . . . . . Reinforcement 2 | . 2 . . . . Assault . | . . . . . . Garrison . | . . . . . . Intercept . | . . . . . . Searches Triggered . | . . . . . . Construction Impeded . | . . . . . . Haulers Reinforced . | . . . . . . Active Scanning Responses . | . . . . . . Cargo Convoy Interrupts . | . . . . . . Stealth | -11 -10 -10 -9 -9 -9 --------- Run | Yrd Mat Min Mat Min Exi Distress Signals 2 | . 1 . 1 . . Communications Jammed . | . . . . . . Distress Signals . | . . . . . . Times Spotted 80 | . 15 13 40 3 9 Peak Tracking Total 10 | . 4 10 3 3 9 Tactical Retreats 2 | . . . 2 . . Traps | -11 -10 -10 -9 -9 -9 ------- Run | Yrd Mat Min Mat Min Exi Traps Triggered 1 | . 1 . . . . Indirectly . | . . . . . . Trap Hack Attempts . | . . . . . . Triggered . | . . . . . . Disarmed . | . . . . . . Reprogrammed . | . . . . . . Reused . | . . . . . . Traps Extracted . | . . . . . . Installed . | . . . . . . Triggered . | . . . . . . Machines | -11 -10 -10 -9 -9 -9 ---------- Run | Yrd Mat Min Mat Min Exi Machines Disabled 10 | . . . 3 1 6 Max in Single Turn 2 | . . . 1 1 2 Machines Repaired . | . . . . . . Machines Dismantled . | . . . . . . Machines Sabotaged . | . . . . . . Overloaded Fab Kills . | . . . . . . Hacking | -11 -10 -10 -9 -9 -9 --------- Run | Yrd Mat Min Mat Min Exi Machines Accessed 26 | . 7 . 17 1 1 Terminals 19 | . 6 . 12 1 . Fabricators . | . . . . . . Repair Stations 2 | . . . 2 . . Recycling Units 3 | . 1 . 2 . . Scanalyzers 1 | . . . 1 . . Garrison Access . | . . . . . . Total Hacks 84 | . 24 . 56 3 1 Successful 52 | . 11 . 38 2 1 Failed 31 | . 13 . 17 1 . Catastrophic 3 | . 2 . 1 . . Database Lockouts 1 | . . . 1 . . Manual 61 | . 21 . 33 6 1 Terminals 69 | . 22 . 44 3 . Fabricators . | . . . . . . Repair Stations 6 | . . . 6 . . Recycling Units 4 | . 2 . 2 . . Scanalyzers 4 | . . . 4 . . Garrison Access . | . . . . . . Terminal Hacks 18 | . 2 . 13 2 1 Part Schematic 1 | . . . . 1 . Robot Analysis 7 | . 2 . 4 1 . Prototype ID Bank 3 | . . . 3 . . Terminal Index 1 | . . . 1 . . Unreport Threat 2 | . . . 2 . . Patrol Status 1 | . . . 1 . . Recall Investigation 1 | . . . 1 . . Hauler Manifests 1 | . . . 1 . . Derelict Proto ID Bank 1 | . . . . . 1 Fabricator Hacks . | . . . . . . Repair Station Hacks 5 | . . . 5 . . Scan Component 3 | . . . 3 . . Repair 2 | . . . 2 . . Recycling Unit Hacks 3 | . 1 . 2 . . Retrieve Components 3 | . 1 . 2 . . Scanalyzer 3 | . . . 3 . . Insert Component 1 | . . . 1 . . Analyze 2 | . . . 2 . . Garrison Access Hacks . | . . . . . . Unauthorized Hacks 22 | . 8 . 14 . . Terminals 22 | . 8 . 14 . . Botnet 6 | . 3 . 3 . . Operators 1 | . . . 1 . . Skim 15 | . 5 . 10 . . Fabricators . | . . . . . . Repair Stations . | . . . . . . Recycling Units . | . . . . . . Scanalyzers . | . . . . . . Garrison Access . | . . . . . . Data Cores Recovered 1 | . . . 1 . . Used 1 | . . . 1 . . Hacking Detections 19 | . 6 . 13 . . Full Trace Events 1 | . . . 1 . . Feedback Events . | . . . . . . Feedback Blocked . | . . . . . . Robot Schematics Acquired . | . . . . . . Robots Built . | . . . . . . Authchips . | . . . . . . Time . | . . . . . . Total Robot Build Rating . | . . . . . . Part Schematics Acquired 2 | . . . 1 1 . Parts Built . | . . . . . . Authchips . | . . . . . . Time . | . . . . . . Total Part Build Rating . | . . . . . . Parts Repaired 2 | . . . 2 . . Time 100 | . . . 100 . . Parts Recycled . | . . . . . . Recycled Matter . | . . . . . . Retrieved Matter . | . . . . . . Retrieved Components 26 | . 7 . 19 . . Parts Scanalyzed 1 | . . . 1 . . Part Schematics Acquired 1 | . . . 1 . . Parts Damaged . | . . . . . . Bothacking | -11 -10 -10 -9 -9 -9 ------------ Run | Yrd Mat Min Mat Min Exi Used RIF Installer . | . . . . . . Robots Hacked . | . . . . . . Non-combat . | . . . . . . Combat . | . . . . . . Robot Hacks Applied . | . . . . . . Relay Couplers Released . | . . . . . . Fabnet Peak Effective % . | . . . . . . Robots Rewired . | . . . . . . Allies Hacked . | . . . . . . Hacks Repelled . | . . . . . . Allies | -11 -10 -10 -9 -9 -9 -------- Run | Yrd Mat Min Mat Min Exi Total Allies . | . . . . . . Largest Group . | . . . . . . Highest-Rated Group . | . . . . . . Highest-Rated Ally . | . . . . . . Total Orders . | . . . . . . Ally Attacks . | . . . . . . Total Damage . | . . . . . . Kills . | . . . . . . Allies Corrupted . | . . . . . . Allies Melted . | . . . . . . Intel | -11 -10 -10 -9 -9 -9 ------- Run | Yrd Mat Min Mat Min Exi Robot Analysis Total 7 | . 2 . 4 1 . Derelict Logs Recovered 1 | . . . . 1 . Drone Launches . | . . . . . . Drone Recoveries . | . . . . . . Exploration | -11 -10 -10 -9 -9 -9 ------------- Run | Yrd Mat Min Mat Min Exi Turns Passed 7165 | 94 1134 420 2920 1419 1178 Spaces Moved 3213 | 51 575 236 1328 644 379 Core 6 | 5 . . 1 . . Treads 2972 | 46 575 236 1123 644 348 Legs . | . . . . . . Wheels 204 | . . . 204 . . Hover 31 | . . . . . 31 Flight . | . . . . . . Fastest Speed 50 | 50 160 160 105 160 240 Average Speed 178 | 149 160 160 151 211 262 Slowest Speed 520 | 160 160 160 450 240 520 Overloaded Moves . | . . . . . . Propulsion Burnouts . | . . . . . . Robots Hopped . | . . . . . . Cave-ins Triggered . | . . . . . . Exploration Rate (%) 64 | 4 95 47 94 90 59 Regions Visited 5 Branch Regions 3 Pre-discovered Areas 8 | . 1 . 6 1 . Known Exits Taken 2 | . . 1 1 . . Unknown Exits Taken 3 | 1 1 . . 1 . Scrap Searched 1 | . . . . 1 . Spaces Dug . | . . . . . . Terrain Destroyed 88 | . . 33 15 . 40 Melee . | . . . . . . Projectile 35 | . . 5 3 . 27 AOE 53 | . . 28 12 . 13 Terrain Rammed . | . . . . . . Walls Destroyed . | . . . . . . Machines Disabled . | . . . . . . Actions | -11 -10 -10 -9 -9 -9 --------- Run | Yrd Mat Min Mat Min Exi Total 4250 | 62 700 259 2071 674 484 Wait 655 | 1 68 2 548 5 31 Move 3208 | 50 574 235 1327 643 379 Hop . | . . . . . . Pick Up 40 | 2 6 1 22 2 7 Fast Attach 10 | 7 1 1 1 . . Attach 11 | . 1 1 2 . 7 Detach . | . . . . . . Swap 59 | . 4 4 41 4 6 Drop 41 | . 1 1 29 2 8 Fire 222 | 2 43 14 101 16 46 Melee . | . . . . . . Ram . | . . . . . . Kick . | . . . . . . Crush 4 | . 2 . . 2 . Escape Stasis . | . . . . . . Rewire . | . . . . . . Trap . | . . . . . . Miscellaneous . | . . . . . . Route ------- -11/Scrapyard -10/Materials (discovered 5 exits: *Mat x3 / [*Min] / Sub) -10/Mines (discovered 2 exits: *Mat x2) -9/Materials (discovered 6 exits: *Mat x3 / *Min / *Sto x2) -9/Mines (discovered 4 exits: *Mat x2 / *Exi / [*Zio]) -9/Exiles History --------- Turn | Location | Event 20 | -11/Scrapyard | Discovered new exit (range 16) 95 | -11/Scrapyard | Entered Materials 305 | -10/Materials | Build established: Mutant 464 | -10/Materials | Discovered new exit (range 16) 578 | -10/Materials | Discovered new exit (range 13) 915 | -10/Materials | Discovered new exit (range 15) 1069 | -10/Materials | Discovered new exit (range 8) 1096 | -10/Materials | Learned location of 1 exit from Storage 1131 | -10/Materials | Identified exit to Subcaves 1131 | -10/Materials | Learned location of 1 exit from Materials 1157 | -10/Materials | Learned 4 Subcaves zone layouts 1180 | -10/Materials | Learned Storage interactive machine intel 1181 | -10/Materials | Learned location of Recycling (-9) 1201 | -10/Materials | Learned Storage trap positions 1226 | -10/Materials | Learned 2 Mines zone layouts 1229 | -10/Materials | Entered Mines 1230 | -10/Mines | Identified exit to Materials 1280 | -10/Mines | Assembled infested the area 1285 | -10/Mines | Assisted by a Guerilla fighting off Assembled 1300 | -10/Mines | Received a Rocket Launcher from a helpful Derelict 1306 | -10/Mines | Core integrity fell below 50% 1333 | -10/Mines | Destroyed 9 combat bots 1556 | -10/Mines | Core integrity fell below 20% 1649 | -10/Mines | Entered Materials 1649 | -9/Materials | Evolved 2 slots: Utility x2 1650 | -9/Materials | Identified exit to Materials 2011 | -9/Materials | Build established: Scavenger-Mutant 2252 | -9/Materials | Loaded intel: 11 trap records 2307 | -9/Materials | Identified exit to Storage 2307 | -9/Materials | Identified exit to Mines 2350 | -9/Materials | Learned location of Zion (-7) 2418 | -9/Materials | Learned 4 Recycling zone layouts 2465 | -9/Materials | Discovered exit to Materials (range 16) 2474 | -9/Materials | Learned Materials trap positions 2572 | -9/Materials | Central database locked down 2817 | -9/Materials | Discovered exit to Storage (range 16) 2840 | -9/Materials | Discovered exit to Materials (range 10) 2910 | -9/Materials | Repaired Bore Cannon 2961 | -9/Materials | Repaired Cmb. Airjet 3914 | -9/Materials | Learned Storage stockpile data 4012 | -9/Materials | Learned location of 1 exit from Recycling 4035 | -9/Materials | Build established: Hacker-Mutant 4049 | -9/Materials | Learned location of 2 exits from Materials 4078 | -9/Materials | Learned Materials emergency access door positions 4569 | -9/Materials | Entered Mines 4570 | -9/Mines | Learned location of Storage (-9) 4587 | -9/Mines | Found a damaged Exp. Sensor Array with a note attached 4591 | -9/Mines | Found Prototype Device 4598 | -9/Mines | Identified Exp. Sensor Array 4721 | -9/Mines | A Derelict revealed a hidden shortcut to a safe place 4733 | -9/Mines | Build established: Mutant 5123 | -9/Mines | Learned location of 1 exit from Lower Caves 5669 | -9/Mines | Deemed a non-threat by the Exiles lab entrance 5800 | -9/Mines | Discovered new exit (range 14) 5988 | -9/Mines | Entered Exiles 6051 | -9/Exiles | Met 8R-AWN 6090 | -9/Exiles | Met EX-HEX 6159 | -9/Exiles | Met EX-BIN 6186 | -9/Exiles | Aligned with FarCom system 6188 | -9/Exiles | Given EX-Vault access code 6246 | -9/Exiles | Opened EX-Vault 6303 | -9/Exiles | Warned to stay clear of 0b10 Research branches 6380 | -9/Exiles | Met EX-DEC 6792 | -9/Exiles | Attacked by the Exiles 6898 | -9/Exiles | Core integrity fell below 50% 6947 | -9/Exiles | Core integrity fell below 20% 6985 | -9/Exiles | Lost 5 parts (1p2n1u1w) 6995 | -9/Exiles | Destroyed 8R-AWN 7132 | -9/Exiles | Build established: Scavenger-Mutant 7166 | -9/Exiles | Destroyed by DAS Turret with DAS Cannon Last Messages --------------- 06985_ 8R-AWN suffers critical hit (Destroy). 06986_ Penetrated by HV Slug. 06986_ Critical hit (Destroy). 06986_ Lgt. Treads destroyed. 06986_ HV Slug penetrates Earth. 06989_ HV Slug penetrates 8R-AWN. 06989_ HV Slug penetrates Wall. 06990_ Penetrated by HV Slug. 06990_ HV Slug penetrates Earth. 06993_ Penetrated by HV Slug. 06993_ Critical hit (Destroy). 06993_ Imp. Treads destroyed. 06993_ HV Slug penetrates Earth. 06995_ HV Slug penetrates 8R-AWN. 06995_ 8R-AWN destroyed. 06998_ Extracted 141 matter. 07161_ HV Slug penetrates Machine. 07161_ Machine disabled. 07163_ HV Slug penetrates Machine. 07166_ Bore Cannon destroyed. Map ----- +----------------------------------------------------+ | ?????????????????????????????????????#" ## | | ???????????#?????????????????????????#""""""## | | ????????#????????????????????????????##"###??# | | ???????# ???????????????????????#????????????# | | ???????# ???????#???????????????????????#????# | | ???#?#?# ####???##??????????????????????????## | | ?#?????# # #####"##????????????????????????##" | | ######?# # #!!! #?????#??????????????#??#?#" | | #""#?# # # "#????????????????????????##" | | ?# # #" "#?##??#???#??????#???????##" | | ## # "" ""####??????????????????????#" | | #"#""" "#?#??????#???? ??????#????#" | | "" ""#?????#??????" ""??#????#?## | | % % ####?###??##??"" ?????#???# | | ?# % % #######???#???"" ????????#?#" | | ?#?## % # # ##???????"" "?????#?###" | | #?#?###% % ## ###??##?? ""??????#??#" | | ######" % # #????????" "??????#??##" | | """"" % ##???#????# ##?????#?##"" | | "##"" # ####???### ###?######"" | | "###" % "#####X# #"###""""""" | | !!!"##?#" % """""" " "" | | !""""" """ #?#"# "" """ " | | ######"" #?#### % " " | | ??##?# # #?#?#### % | | ?#??## #####????#### @ | | ????# ##?#???#???### | | ???## #???#??#?????## | | #?#?## #?#???????#???## | | #????# # ?????##??????#" """""" | | ????## #?###?#????#???#" ######"" | | ????? ##??##?#?#??#??#"" ""##????### | | ????? ???#?##????????#""" """##???#???? | | #??#? ??#???????#????""" """##????????? | | ????? #??#??#?????????""" ""#??????#??? | | ???? ??????#?????????"" ##?????????? | | ???? ?????#????#??????"" ?????????? | | ??????????????????????"" ?????????? | | ??????????????##?????#?"" t ?????????? | | ????????????????????????""" ??????????? | | ??????????????????????#?? ???????????? | | ??????????????????????????? ????????????? | | ?????????????????????????????????????????????????? | | ?????????????????????????????????????????????????? | | ?????????????????????????????????????????????????? | | ?????????????????????????????????????????????????? | | ?????????????????????????????????????????????????? | | ?????????????????????????????????????????????????? | | ?????????????????????????????????????????????????? | | ?????????????????????????????????????????????????? | +----------------------------------------------------+ Best States ------------- Heat Dissipation 28 Energy Generation 14 Energy Capacity 280 Matter Stores 300 Matter Capacity 300 Sight Range 16 Robot Scan Range 20 Terrain Scan Range 16 Terrain Scan Density 10 Armor Coverage 450 Core Shielding 20 Evasion (%) 40 Recoil Reduction 2 Offensive Hacking 10 Defensive Hacking 10 Item Schematics ----------------- Cmb. Airjet | -9/Materials | Scanalyzed Plasma Cutter | -9/Mines | Hacked Robot Schematics ------------------ None Fabricated ------------ Nothing Alien Tech Used ----------------- None Achievements -------------- None Challenges ------------ None Game ------ Seed WaveRemoteBox Manual? 0 Play Time 00:44:35 Cumulative 218.1 hours Start 2024.09.05 @ 12:31:06 End 2024.09.05 @ 13:21:26 Sessions 1 Manual Loads 0 Difficulty Rogue Special Mode None Game No. 191 Rogue 191 Adventurer 0 Explorer 0 Win Type - Total 1 Types 0/0/0/1/0/0/0/0/0 Lore% 63 Gallery% 73 Achievement% 54 Wizard Run 0 Options --------- Layout 2 ASCII 0 Keyboard 1 Movement Vi Keybinds 0 Fullscreen 1 Font 32/SmallcapsGlow Map View 77x44 Zoom Use 0% Tactical HUD 1 Map Filters NONE Filters NONE Steam 1 RUN: c362b071-71e1-495e-a395-98e788e6cf94